Cogmind - Beta 17.1 @@@ ROGUE MODE // 2026.09.06 @ 20:07:41 Player: SnailSD Result: Self-destructed Performance ------------- Evolutions (1) 500 Regions Visited (3) 600 Robots Destroyed (28) 140 Value Destroyed (596) 596 Prototype IDs (3) 60 Alien Tech Used (0) 0 Bonus (0) 0 TOTAL SCORE: 1896 Bonus ------- None Cogmind --------- Core Integrity 210/400 Matter 255/300 Energy 17/100 System Corruption 0% Temperature Critical (661) Movement Core (1450) Ox28 Location -9/Storage Parts ------- > --- POWER (1) -------- (None) > --- PROPULSION (2) --- Light Treads > --- UTILITY (4) ------ Huge Storage Unit Structural Scanner Signal Interpreter > --- WEAPON (2) ------- Advanced Beam Rifle Advanced Beam Rifle > --- INVENTORY (25) --- Ion Engine Light Treads Light Treads Light Treads Light Treads Light Treads Light Treads Small Matter Pod (50) Weight Redist. System Visual Processing Unit Light Armor Plating Advanced Beam Rifle Advanced Beam Rifle Grenade Launcher Mining Laser Peak State ------------ > --- POWER ------------ Improved Ion Engine > --- PROPULSION ------- Light Treads Compact Wheel > --- UTILITY ---------- Heat Sink Huge Storage Unit Structural Scanner Signal Interpreter > --- WEAPON ----------- Advanced Beam Rifle Advanced Beam Rifle > --- INVENTORY -------- Ion Engine Light Treads Light Treads Light Treads Small Matter Pod Weight Redist. System Visual Processing Unit Light Armor Plating Advanced Beam Rifle Advanced Beam Rifle Grenade Launcher Mining Laser [Rating: 18] Favorites ----------- Power Light Ion Engine Engine Light Ion Engine Propulsion Light Treads Treads Light Treads Wheel Compact Wheel Utility Small Storage Unit Device Heat Sink Storage Small Storage Unit Processor Signal Interpreter Weapon Small Laser Energy Gun Small Laser Ballistic Gun Assault Rifle Build | -11 -10 -9 -9 ------- Run | Yrd Mat Mat Sto Slots Evolved 2 | . . 2 . Power . | . . . . Propulsion . | . . . . Utility 2 | . . 2 . Weapon . | . . . . Parts Attached 23 | 7 3 11 2 Power 3 | 1 . 2 . Engine 3 | 1 . 2 . Core . | . . . . Reactor . | . . . . Propulsion 6 | 2 1 2 1 Treads 5 | 2 . 2 1 Leg . | . . . . Wheel 1 | . 1 . . Hover . | . . . . Flight . | . . . . Utility 8 | 2 1 4 1 Device 4 | 1 . 3 . Storage 3 | 1 . 1 1 Processor 1 | . 1 . . Hackware . | . . . . Protection . | . . . . Artifact . | . . . . Weapon 6 | 2 1 3 . Energy Gun 4 | 1 1 2 . Energy Cannon . | . . . . Ballistic Gun 2 | 1 . 1 . Ballistic Cannon . | . . . . Launcher . | . . . . Special Weapon . | . . . . Impact Weapon . | . . . . Slashing Weapon . | . . . . Piercing Weapon . | . . . . Special Melee Weapon . | . . . . Unidentified Prototypes 1 | . . 1 . Parts Lost 8 | . 2 3 3 Power 3 | . . 2 1 Propulsion 3 | . 1 1 1 Utility 2 | . 1 . 1 Weapon . | . . . . Highest Loss Streak 3 | . 1 1 3 To Critical Strikes . | . . . . Average Backups 8 | 5 7 8 11 Power . | . 1 . 1 Propulsion 2 | 2 1 2 4 Utility 2 | . 2 2 2 Weapon 2 | 1 2 3 4 Tool/Special . | . . . . Unused Backups 19 | 3 . 7 9 Power . | . . . . Propulsion 6 | 2 . 2 2 Utility 8 | 1 . 3 4 Weapon 5 | . . 2 3 Tool/Special . | . . . . Average Slot Usage (%) 92 | . 87 95 96 Engine 12 | . 14 11 10 Treads 19 | . 21 19 15 Wheel 2 | . . 2 5 Device 12 | . 3 19 20 Storage 12 | . 14 11 11 Processor 8 | . 4 11 11 Energy Gun 22 | . 27 15 22 Ballistic Gun 2 | . . 5 . Peak Build Rating 18 | 7 8 17 18 Average Rating 10 | 5 7 12 17 On Entrance 8 | . 7 8 17 Avg Prop Armor Cover (%) 13 | . 14 13 13 Naked Turns . | . . . . Heaviest Build 93 | 12 12 23 93 Greatest Support 40 | 40 40 40 40 Greatest Overweight (x) 5 | . . 4 5 Average Overweight (x) . | . . . 2 Largest Inventory Capacity 25 | 8 8 10 25 Average Capacity 10 | 7 8 9 20 Most Carried 15 | 8 8 10 15 Average Carried 8 | 5 7 8 11 Final Capacity 25 | 8 8 10 25 Final Carried 15 | 7 8 10 15 Class Distribution -------------------- 69% | Mutant 30% | Scavenger-Mutant Dominant Class ---------------- Mutant | -10/Materials Scavenger-Mutant | -9/Materials Scavenger-Mutant | -9/Storage Resources | -11 -10 -9 -9 ----------- Run | Yrd Mat Mat Sto Matter Collected 598 | 356 5 170 67 Remotely . | . . . . Salvage Created 960 | 172 188 322 278 Parts 69 | 12 14 27 16 Haulers Intercepted 3 | . . 2 1 Recyclers Shooed 4 | . 2 1 1 Parts Field Recycled . | . . . . Retrieved Matter . | . . . . Parts Self-Destructed . | . . . . Prevented . | . . . . Parts Restored . | . . . . Kills | -11 -10 -9 -9 ------- Run | Yrd Mat Mat Sto Combat Hostiles Destroyed 18 | . 7 7 4 Guns 18 | . 7 7 4 Classes Destroyed 9 | 3 2 3 1 Worker 2 | 2 . . . Builder 1 | . . 1 . Tunneler 2 | 2 . . . Hauler 3 | . . 2 1 Recycler 1 | 1 . . . Watcher 1 | . . . 1 Swarmer 6 | . 3 3 . Grunt 9 | . 4 3 2 Sentry 3 | . . 1 2 Best Kill Streak 4 | 3 4 4 3 Combat Bots Only 4 | . 4 3 3 Max Kills in Single Turn 2 | 1 1 2 1 Gunslinging 1 | . . 1 . Exploded . | . . . . Melee . | . . . . Uniques/NPCs Destroyed . | . . . . Combat | -11 -10 -9 -9 -------- Run | Yrd Mat Mat Sto Hostile Shots Fired 152 | . 57 49 46 Missed 36 | . 18 6 12 Hits 116 | . 39 43 34 Projectile 116 | . 39 43 34 Damage Taken 1267 | . 418 457 392 Core 263 | . 73 80 110 Absorbed by Shields . | . . . . Core Remaining (%) 85 | 100 70 . . Volleys Fired 78 | 11 26 23 18 Largest 2 | 2 2 2 2 Hottest 122 | 60 80 122 122 Shots Fired 156 | 22 52 46 36 Gun 156 | 22 52 46 36 Cannon . | . . . . Launcher . | . . . . Special . | . . . . Kinetic 29 | 11 . 18 . Thermal 127 | 11 52 28 36 Explosive . | . . . . Electromagnetic . | . . . . Robot Hit Streak 7 | 6 6 7 4 Robot Miss Streak 4 | 2 3 3 4 Penetration Max . | . . . . Secondary Targets 3 | . 2 1 . Max Gunslinging Chain 1 | . 1 1 . Shots Hit Robots 101 | 14 34 36 17 Core Hits 42 | 6 14 15 7 Critical Kills . | . . . . Critical Parts Destroyed 1 | 1 . . . Critical Strikes 3 | 1 . 1 1 Burn 2 | . . 1 1 Destroy 1 | 1 . . . Melee Attacks . | . . . . Impact . | . . . . Slashing . | . . . . Piercing . | . . . . Sneak Attacks . | . . . . Combat Hostiles . | . . . . Follow-up Attacks . | . . . . Damage Inflicted 1506 | 176 408 550 372 Guns 1503 | 176 405 550 372 Cannons . | . . . . Explosions . | . . . . Melee . | . . . . Ramming 3 | . 3 . . Kinetic 339 | 98 . 241 . Thermal 1164 | 78 405 309 372 Explosive . | . . . . Electromagnetic . | . . . . Impact . | . . . . Slashing . | . . . . Piercing . | . . . . Highest Corruption . | . . . . Average Corruption . | . . . . Corruption Purged . | . . . . Corruption Blocked . | . . . . Overload Shots . | . . . . Overflow Damage . | . . . . Projectiles . | . . . . Explosions . | . . . . Melee . | . . . . Knockbacks . | . . . . Impact . | . . . . Kinetic . | . . . . Secondary . | . . . . Self-Inflicted Damage . | . . . . Shots . | . . . . Rammed 2 | . 2 . . Targets Rammed 2 | . 2 . . Kicked . | . . . . Crushed . | . . . . Highest Temperature 661 | . 216 72 661 Average Temperature 102 | . 69 21 219 Received Heat Transfer 567 | . 183 180 204 Effects 9 | . . . 9 Energy Bleed 1 | . . . 1 Matter Decay 1 | . . . 1 Short Circuit 1 | . . . 1 Damage (minor) 2 | . . . 2 Damage (major) 4 | . . . 4 Siege Activations . | . . . . Martial Activations . | . . . . Shielding Activations . | . . . . Robots Disrupted . | . . . . Combat Hostiles . | . . . . Robots Corrupted . | . . . . Combat Hostiles . | . . . . Parts Fried . | . . . . Impact Corruptions . | . . . . Robots Melted . | . . . . Combat Hostiles . | . . . . Parts Melted 1 | . 1 . . Heat Transferred 2485 | 175 875 695 740 Parts Sabotaged . | . . . . Parts Stolen . | . . . . Parts Stripped . | . . . . Power Chain Reactions . | . . . . Alert | -11 -10 -9 -9 ------- Run | Yrd Mat Mat Sto Maximum Alert Level . | . . . . Low Security (%) 100 | 100 100 100 100 Level 1 . | . . . . Level 2 . | . . . . Level 3 . | . . . . Level 4 . | . . . . Level 5 . | . . . . High Security . | . . . . Max Security . | . . . . Peak Influence 155 | 10 155 92 60 Initial 29 | . . 27 29 Average 43 | 1 90 35 15 Influence Increases 629 | 25 245 219 140 Destroy 0b10 Robot/C 360 | . 140 140 80 Destroy 0b10 Robot/NC 50 | 25 . 15 10 Destroy Leader 108 | . 30 44 34 Successful Hack 5 | . . 5 . Disable Machine 30 | . . 15 15 Destroy Structure 1 | . . . 1 Lose Combat Pursuer 75 | . 75 . . Influence Decreases 598 | 25 178 214 181 Entered New Map 83 | . . 40 43 Time Decay 409 | 25 158 147 79 Lost Part 77 | . 20 27 30 Purge Threat 29 | . . . 29 Squads Dispatched 4 | . 1 2 1 Investigation 2 | . . 2 . Extermination . | . . . . Reinforcement 2 | . 1 . 1 Assault . | . . . . Garrison . | . . . . Intercept . | . . . . Searches Triggered . | . . . . Construction Impeded . | . . . . Haulers Reinforced . | . . . . Active Scanning Responses . | . . . . Cargo Convoy Interrupts . | . . . . Stealth | -11 -10 -9 -9 --------- Run | Yrd Mat Mat Sto Distress Signals 4 | . 2 1 1 Communications Jammed . | . . . . Distress Signals . | . . . . Times Spotted 30 | . 11 12 7 Peak Tracking Total 7 | . 7 7 4 Tactical Retreats 2 | . 2 . . Traps | -11 -10 -9 -9 ------- Run | Yrd Mat Mat Sto Traps Triggered 1 | . . 1 . Indirectly . | . . . . Trap Hack Attempts . | . . . . Triggered . | . . . . Disarmed . | . . . . Reprogrammed . | . . . . Reused . | . . . . Traps Extracted . | . . . . Installed . | . . . . Triggered . | . . . . Machines | -11 -10 -9 -9 ---------- Run | Yrd Mat Mat Sto Machines Disabled 2 | . . 1 1 Max in Single Turn 1 | . . 1 1 Garrison Access 1 | . . . 1 Machines Repaired . | . . . . Machines Dismantled . | . . . . Machines Sabotaged . | . . . . Overloaded Fab Kills . | . . . . Hacking | -11 -10 -9 -9 --------- Run | Yrd Mat Mat Sto Machines Accessed 6 | . 3 1 2 Terminals 4 | . 2 1 1 Fabricators . | . . . . Repair Stations . | . . . . Recycling Units 1 | . 1 . . Scanalyzers . | . . . . Garrison Access 1 | . . . 1 Total Hacks 17 | . 8 3 6 Successful 6 | . 3 1 2 Failed 11 | . 5 2 4 Catastrophic 1 | . . . 1 Database Lockouts . | . . . . Manual 7 | . 4 3 . Terminals 14 | . 7 3 4 Fabricators . | . . . . Repair Stations . | . . . . Recycling Units 1 | . 1 . . Scanalyzers . | . . . . Garrison Access 2 | . . . 2 Terminal Hacks 4 | . 2 1 1 Robot Analysis 2 | . 2 . . Prototype ID Bank 1 | . . 1 . Unreport Threat 1 | . . . 1 Fabricator Hacks . | . . . . Repair Station Hacks . | . . . . Recycling Unit Hacks 1 | . 1 . . Retrieve Components 1 | . 1 . . Scanalyzer . | . . . . Garrison Access Hacks 1 | . . . 1 Seal Access 1 | . . . 1 Unauthorized Hacks . | . . . . Terminals . | . . . . Fabricators . | . . . . Repair Stations . | . . . . Recycling Units . | . . . . Scanalyzers . | . . . . Garrison Access . | . . . . Data Cores Recovered . | . . . . Used . | . . . . Hacking Detections 5 | . 2 1 2 Full Trace Events 1 | . . 1 . Feedback Events . | . . . . Feedback Blocked . | . . . . Robot Schematics Acquired . | . . . . Robots Built . | . . . . Authchips . | . . . . Time . | . . . . Total Robot Build Rating . | . . . . Part Schematics Acquired . | . . . . Parts Built . | . . . . Authchips . | . . . . Time . | . . . . Total Part Build Rating . | . . . . Part Studies Acquired . | . . . . Parts Repaired . | . . . . Time . | . . . . Parts Recycled . | . . . . Recycled Matter . | . . . . Retrieved Matter . | . . . . Retrieved Components 7 | . 7 . . Parts Scanalyzed . | . . . . Part Schematics Acquired . | . . . . Parts Damaged . | . . . . Bothacking | -11 -10 -9 -9 ------------ Run | Yrd Mat Mat Sto Used RIF Installer . | . . . . Robots Hacked . | . . . . Non-combat . | . . . . Combat . | . . . . Robot Hacks Applied . | . . . . Relay Couplers Released . | . . . . Fabnet Peak Effective % . | . . . . Robots Rewired . | . . . . Allies Hacked . | . . . . Hacks Repelled . | . . . . Allies | -11 -10 -9 -9 -------- Run | Yrd Mat Mat Sto Total Allies . | . . . . Largest Group . | . . . . Highest-Rated Group . | . . . . Highest-Rated Ally . | . . . . Total Orders . | . . . . Ally Attacks . | . . . . Total Damage . | . . . . Kills . | . . . . Allies Corrupted . | . . . . Allies Melted . | . . . . Intel | -11 -10 -9 -9 ------- Run | Yrd Mat Mat Sto Active Infowar (turns) 671 | 27 94 313 237 Terrain 101 | . . 101 . Structural 449 | . . 212 237 Seismic 121 | 27 94 . . Robot Analysis Total 2 | . 2 . . Derelict Logs Recovered . | . . . . Drone Launches . | . . . . Drone Recoveries . | . . . . Exploration | -11 -10 -9 -9 ------------- Run | Yrd Mat Mat Sto Turns Passed 1205 | 235 416 317 237 Spaces Moved 569 | 113 213 148 95 Core 2 | 1 . 1 . Treads 452 | 112 189 110 41 Legs . | . . . . Wheels 115 | . 24 37 54 Hover . | . . . . Flight . | . . . . Fastest Speed 50 | 50 100 100 115 Average Speed 156 | 159 153 145 176 Slowest Speed 320 | 160 160 250 320 Overloaded Moves . | . . . . Propulsion Burnouts . | . . . . Robots Hopped . | . . . . Potential Cave-ins . | . . . . Cave-ins Triggered . | . . . . Exploration Rate (%) 18 | 6 34 20 13 Regions Visited 3 Branch Regions 1 Pre-discovered Areas . | . . . . Known Exits Taken 2 | . 1 1 . Unknown Exits Taken 1 | 1 . . . Scrap Searched . | . . . . Spaces Dug . | . . . . Terrain Destroyed . | . . . . Melee . | . . . . Projectile . | . . . . AOE . | . . . . Terrain Rammed . | . . . . Walls Destroyed . | . . . . Machines Disabled . | . . . . Actions | -11 -10 -9 -9 --------- Run | Yrd Mat Mat Sto Total 731 | 145 249 208 129 Wait . | . . . . Move 566 | 112 212 147 95 Hop . | . . . . Pick Up 32 | 10 3 13 6 Fast Attach 16 | 7 2 6 1 Attach 6 | 1 1 4 . Detach 3 | 1 1 1 . Swap 5 | . . 1 4 Drop 23 | 3 2 13 5 Fire 78 | 11 26 23 18 Melee . | . . . . Ram . | . . . . Kick . | . . . . Crush 2 | . 2 . . Escape Stasis . | . . . . Rewire . | . . . . Trap . | . . . . Miscellaneous . | . . . . Route ------- -11/Scrapyard -10/Materials -9/Materials (discovered 2 exits: *Sto x2) -9/Storage History --------- Turn | Location | Event 10 | -11/Scrapyard | Discovered new exit (range 14) 236 | -11/Scrapyard | Entered Materials 312 | -10/Materials | Build established: Mutant 638 | -10/Materials | Discovered new exit (range 10) 646 | -10/Materials | Identified exit to Materials 652 | -10/Materials | Entered another Materials area 652 | -9/Materials | Evolved 2 slots: Utility x2 676 | -9/Materials | Discovered new exit (range 15) 930 | -9/Materials | Discovered new exit (range 11) 961 | -9/Materials | Identified exit to Storage 969 | -9/Materials | Entered Storage 1107 | -9/Storage | Build established: Scavenger-Mutant 1206 | -9/Storage | Self-destructed Last Messages --------------- 01193_ Overheating: Short circuit. 01196_ Broken Imp. Ion Engine destroyed. 01197_ Overheating: Lgt. Treads damaged (-42). 01199_ R-06 Scavenger collects Aluminum Leg. 01200_ Overheating: Adv. Beam Rifle damaged (-23). 01203_ Overheating: Energy bleed (-11). 01204_ Overheating: Adv. Beam Rifle damaged (-10). 01204_ Overheating: Huge Storage Unit damaged (-358). 01204_ Overheating: Structural Scanner damaged (-1). 01204_ Overheating: Lgt. Treads damaged (-7). 01205_ Overheating: Matter decay (-45). To regain energy, simply wait via the mouse wheel, '.', or KP5. Also make sure your per-turn energy generation is a net positive, and consider deactivating power-draining parts if not. Map ----- +----------------------------------------------------+ | ??????????? # # ##???? | | ??????????? # # ##???? | | ??????????? # # ##???? | | ??????????? # + ##???? | | ??????????? # # ##???? | | ??????????? # """"" !#!! ##???? | | ??????????? # """"" #%!*##???? | | ??????????? # """" #!= ##???? | | ??????????? ###########= ##???? | | ???????????############ ##???? | | ?????????????????????## ##???? | | ?????????????????????## ##???? | | ?????????????????????## #####? | | ?????????????????????## #####? | | ?????????????????????## = "" ##? | | ?????????????????????##% G"##? | | ?????????????????????## "" ##? | | ?????????????????????## #####? | | ?????????????????????## #####? | | ?????????????????????## ##???? | | ?????????????????????## ##???? | | ?????????????????????## ##???? | | ?????????????????????## ##???? | | ???????????????? ##### ##???? | | ????????????????####### ##???? | | ?????????? =%= u@##???? | | ?????????? g =% ##???? | | ????????? r ! ##???? | | ?????????#####+####### ##???? | | ????????? #### ##???? | | ????????????????????## g ##???? | | ????????????????????## ##???? | | ????????????????????## ##???? | | ????????????????????## ##???? | | ???????????????????? #;##???? | | ????????????????????? # ???? | | ???????????????????? %! ?]?????? | | ???????????????????? [ ?=?????? | | ??????????????????? # ????? | | ????????????????????#+#####????? | | ???????????????????? ????? | | ???????????????????????????????? | | ???????????????????????????????? | | ???????????????????????????????? | | ???????????????????????????????? | | ???????????????????????????????? | | ???????????????????????????????? | | ???????????????????????????????? | | ???????????????????????????????? | | ???????????????????????????????? | +----------------------------------------------------+ Best States ------------- Heat Dissipation 38 Energy Generation 12 Energy Capacity 265 Matter Stores 300 Matter Capacity 300 Sight Range 16 Terrain Scan Range 16 Terrain Scan Density 10 Evasion (%) 40 Recoil Reduction 2 Item Schematics ----------------- None Robot Schematics ------------------ None Fabricated ------------ Nothing Repaired ---------- Nothing Studied --------- None Alien Tech Used ----------------- None Achievements -------------- None Challenges ------------ None Game ------ Seed MyomerGreatRifle Manual? 0 Play Time 00:18:46 Cumulative 78.3 hours Start 2026.09.06 @ 05:00:29 End 2026.09.06 @ 20:07:41 Sessions 3 Manual Loads 0 Difficulty Rogue Special Mode None Game No. 130 Rogue 130 Adventurer 0 Explorer 0 Win Type - Total 1 Types 1/0/0/0/0/0/0/0/0/0 Lore% 46 Gallery% 42 Achievement% 31 Wizard Run 0 Options --------- Layout 1 ASCII 1 Keyboard 1 Movement Numpad Keybinds 0 Fullscreen 2 Font 24/Smallcaps Map View 50x35 Zoom Use 0% Tactical HUD 1 Map Filters NONE Filters NONE Steam 1 RUN: 84c018dd-533c-45c5-af34-4f5a2fc73933